fUSD/lending_fUSD_20260519
["ID","MTS","AMOUNT","RATE_DAILY","PERIOD"]
[422595875,1779135050000,-150.0,0.00035899,2]
[422595873,1779135050000,-400.91,0.000358,120]
[422595876,1779135050000,-1104.8,0.000359,120]
[422595815,1779135050000,-151.0,0.00035081,7]
[422595847,1779135050000,-500.0,0.00035324,30]
[422595851,1779135050000,-416.47,0.00035616,60]
[422595871,1779135050000,-361.858181,0.000358,29]
[422595850,1779135050000,-1283.65,0.000356,2]
[422595844,1779135050000,-151.0,0.00035324,7]
[422595826,1779135050000,-338.0,0.00035119,30]
[422595827,1779135050000,-157.0,0.00035119,30]
[422595825,1779135050000,-171.95204809,0.00035119,30]
[422595817,1779135050000,-161.61786841,0.00035115,30]
[422595821,1779135050000,-159.0,0.00035115,30]
[422595822,1779135050000,-289.0,0.00035119,30]
[422595818,1779135050000,-181.0,0.00035115,30]
[422595820,1779135050000,-157.0,0.00035115,30]
[422595819,1779135050000,-391.0,0.00035115,30]
[422595823,1779135050000,-155.0,0.00035119,30]
[422595828,1779135050000,-161.0,0.00035119,30]
[422595836,1779135050000,-255.41,0.000353,30]
[422595838,1779135050000,-330.0,0.00035305,38]
[422595816,1779135050000,-151.0,0.00035081,7]
[422595837,1779135050000,-200.0,0.000353,14]
[422595829,1779135050000,-1049.99900486,0.00035122,2]
[422595841,1779135050000,-1300.0,0.00035324,60]
[422595852,1779135050000,-385.77830227,0.00035616,30]
[422595853,1779135050000,-700.41,0.00035616,120]
[422595835,1779135050000,-358.0,0.000353,30]
[422595832,1779135050000,-1500.0,0.000352,7]
[422595842,1779135050000,-151.0,0.00035324,7]
[422595831,1779135050000,-165.0,0.000352,60]
[422595839,1779135050000,-150.0,0.00035315,120]
[422595833,1779135050000,-300.0,0.0003527,2]
[422595830,1779135050000,-159.41,0.00035174,120]
[422595843,1779135050000,-151.0,0.00035324,7]
[422595840,1779135050000,-500.0,0.00035324,60]
[422595834,1779135050000,-400.0,0.0003527,2]
[422595930,1779135051000,-300.0,0.00036227,2]
[422595907,1779135051000,-301.05366791,0.00036227,2]
[422595909,1779135051000,-300.91708569,0.00036227,2]
[422595910,1779135051000,-300.80777037,0.00036227,2]
[422595914,1779135051000,-1566.54217295,0.00036227,2]
[422595912,1779135051000,-461.12768309,0.00036227,2]
[422595915,1779135051000,-318.5551525,0.00036227,2]
[422595916,1779135051000,-345.80793423,0.00036227,2]
[422595920,1779135051000,-1095.40392062,0.00036227,2]
[422595931,1779135051000,-300.0,0.00036227,2]
[422595911,1779135051000,-301.37801261,0.00036227,2]
[422595917,1779135051000,-1147.88995825,0.00036227,2]
[422595928,1779135051000,-436.78154743,0.00036227,2]
[422595923,1779135051000,-300.0,0.00036227,2]
[422595922,1779135051000,-551.52471773,0.00036227,2]
[422595921,1779135051000,-311.07204687,0.00036227,2]
[422595924,1779135051000,-300.0,0.00036227,2]
[422595926,1779135051000,-1067.5484804,0.00036227,2]
[422595927,1779135051000,-893.93225908,0.00036227,2]
[422595925,1779135051000,-300.0,0.00036227,2]
[422595929,1779135051000,-300.70672347,0.00036227,2]
[422595933,1779135051000,-300.73949774,0.00036227,2]
[422595932,1779135051000,-300.83289583,0.00036227,2]
[422595918,1779135051000,-864.96954818,0.00036227,2]
[422595934,1779135051000,-344.18013641,0.00036227,2]
[422595919,1779135051000,-300.0,0.00036227,2]
[422595913,1779135051000,-376.72374301,0.00036227,2]
[422595893,1779135051000,-957.74,0.0003613,2]
[422595906,1779135051000,-466.21554173,0.00036227,2]
[422595935,1779135051000,-527.20076075,0.00036227,2]
[422595880,1779135051000,-3132.5865113,0.00036,3]
[422595881,1779135051000,-5950.58,0.00036,14]
[422595891,1779135051000,-157.0,0.00036119,30]
[422595885,1779135051000,-391.0,0.00036115,30]
[422595886,1779135051000,-157.0,0.00036115,30]
[422595883,1779135051000,-235.4,0.000361,120]
[422595882,1779135051000,-800.0,0.00036,2]
[422595888,1779135051000,-289.0,0.00036119,30]
[422595884,1779135051000,-181.0,0.00036115,30]
[422595887,1779135051000,-159.0,0.00036115,30]
[422595889,1779135051000,-155.0,0.00036119,30]
[422595908,1779135051000,-382.92933654,0.00036227,2]
[422595890,1779135051000,-338.0,0.00036119,30]
[422595892,1779135051000,-161.0,0.00036119,30]
[422595897,1779135051000,-1300.0,0.00036146,60]
[422595903,1779135051000,-300.76656093,0.00036227,2]
[422595895,1779135051000,-1049.99900486,0.00036132,2]
[422595901,1779135051000,-300.83364423,0.00036227,2]
[422595899,1779135051000,-250.0,0.00036214,7]
[422595902,1779135051000,-564.75293667,0.00036227,2]
[422595905,1779135051000,-607.65815816,0.00036227,2]
[422595904,1779135051000,-306.21103702,0.00036227,2]
[422595898,1779135051000,-401.5,0.00036153,30]
[422595896,1779135051000,-500.0,0.00036146,60]
[422595900,1779135051000,-574.20023427,0.00036227,2]
[422595894,1779135051000,-3996.51,0.00036131,2]
[422595944,1779135051000,-1095.40392062,0.00036227,2]
[422595953,1779135051000,-726.47725465,0.00036227,2]
[422595936,1779135051000,-568.56191095,0.00036227,2]
[422595966,1779135051000,-310.01860705,0.00036227,2]
[422595972,1779135051000,-300.0,0.00036227,2]
[422595971,1779135051000,-300.0,0.00036227,2]
[422595973,1779135051000,-300.0,0.00036227,2]
[422595976,1779135051000,-300.0,0.00036227,2]
[422595974,1779135051000,-492.9890159,0.00036227,2]
[422595982,1779135051000,-300.75053335,0.00036227,2]
[422595975,1779135051000,-604.82261984,0.00036227,2]
[422595977,1779135051000,-528.05618904,0.00036227,2]
[422595978,1779135051000,-1067.5484804,0.00036227,2]
[422595979,1779135051000,-893.93225908,0.00036227,2]
[422595981,1779135051000,-301.92446649,0.00036227,2]
[422595968,1779135051000,-300.0,0.00036227,2]
[422595980,1779135051000,-726.47725465,0.00036227,2]
[422595985,1779135051000,-1913.53540761,0.00036227,2]
[422595984,1779135051000,-949.54917655,0.00036227,2]
[422595992,1779135051000,-300.0,0.00036227,2]
[422595990,1779135051000,-545.66294952,0.00036227,2]
[422595988,1779135051000,-309.77500889,0.00036227,2]
[422595943,1779135051000,-300.0,0.00036227,2]
[422595987,1779135051000,-527.20076074,0.00036227,2]
[422595993,1779135051000,-464.11796449,0.00036227,2]
[422595995,1779135051000,-267.29481533,0.00036227,2]
[422595986,1779135051000,-344.18013641,0.00036227,2]
[422595991,1779135051000,-311.08512202,0.00036227,2]
[422595994,1779135051000,-300.0,0.00036227,2]
[422595983,1779135051000,-300.0,0.00036227,2]
[422595965,1779135051000,-300.0,0.00036227,2]
[422595989,1779135051000,-864.96954818,0.00036227,2]
[422595964,1779135051000,-452.16244064,0.00036227,2]
[422595967,1779135051000,-484.37160242,0.00036227,2]
[422595941,1779135051000,-452.16244066,0.00036227,2]
[422595940,1779135051000,-577.57827662,0.00036227,2]
[422595942,1779135051000,-300.0,0.00036227,2]
[422595939,1779135051000,-312.4797352,0.00036227,2]
[422595938,1779135051000,-864.96954818,0.00036227,2]
[422595945,1779135051000,-300.0,0.00036227,2]
[422595957,1779135051000,-527.20076076,0.00036227,2]
[422595950,1779135051000,-528.05618904,0.00036227,2]
[422595946,1779135051000,-300.0,0.00036227,2]
[422595947,1779135051000,-492.9890159,0.00036227,2]
[422595948,1779135051000,-300.0,0.00036227,2]
[422595956,1779135051000,-344.18013641,0.00036227,2]
[422595937,1779135051000,-309.77500889,0.00036227,2]
[422595954,1779135051000,-300.75053335,0.00036227,2]
[422595952,1779135051000,-893.93225908,0.00036227,2]
[422595963,1779135051000,-577.57827662,0.00036227,2]
[422595960,1779135051000,-311.08512202,0.00036227,2]
[422595962,1779135051000,-300.0,0.00036227,2]
[422595970,1779135051000,-300.0,0.00036227,2]
[422595969,1779135051000,-1095.40392062,0.00036227,2]
[422595958,1779135051000,-309.77500889,0.00036227,2]
[422595961,1779135051000,-464.11796449,0.00036227,2]
[422595951,1779135051000,-1067.5484804,0.00036227,2]
[422595949,1779135051000,-604.73492276,0.00036227,2]
[422595955,1779135051000,-300.0,0.00036227,2]
[422595959,1779135051000,-864.96954818,0.00036227,2]
[422596017,1779135052000,-550.91714303,0.00036227,2]
[422596021,1779135052000,-726.47725465,0.00036227,2]
[422596024,1779135052000,-300.75053335,0.00036227,2]
[422596025,1779135052000,-300.0,0.00036227,2]
[422596026,1779135052000,-300.0,0.00036227,2]
[422596027,1779135052000,-650.36798471,0.00036227,2]
[422596023,1779135052000,-300.0,0.00036227,2]
[422596022,1779135052000,-301.96813424,0.00036227,2]
[422596029,1779135052000,-500.0,0.00013698,2]
[422596036,1779135052000,-151.0,0.00024658,2]
[422596034,1779135052000,-426.0,0.00021865,7]
[422596035,1779135052000,-151.0,0.00024658,2]
[422596028,1779135052000,-500.0,0.00013698,2]
[422596033,1779135052000,-500.0,0.00013698,2]
[422596032,1779135052000,-500.0,0.00013698,2]
[422596030,1779135052000,-500.0,0.00013698,2]
[422596037,1779135052000,-151.0,0.00027397,2]
[422596038,1779135052000,-151.0,0.0003013,7]
[422596015,1779135052000,-370.5864923,0.00036227,2]
[422596040,1779135052000,-1913.5354076,0.00036227,2]
[422596031,1779135052000,-500.0,0.00013698,2]
[422596018,1779135052000,-516.63133737,0.00036227,2]
[422596009,1779135052000,-516.65348082,0.00036227,2]
[422596014,1779135052000,-300.0,0.00036227,2]
[422596050,1779135052000,-452.16244064,0.00036227,2]
[422595996,1779135052000,-3178.68155529,0.00011245,2]
[422595997,1779135052000,-350.83844471,0.00011245,2]
[422595998,1779135052000,-310.28346129,0.00036227,2]
[422596008,1779135052000,-578.7504398,0.00036227,2]
[422596001,1779135052000,-300.0,0.00036227,2]
[422596005,1779135052000,-310.01860705,0.00036227,2]
[422596007,1779135052000,-295.47311288,0.00036227,2]
[422595999,1779135052000,-70.29802748,0.00036227,2]
[422596019,1779135052000,-279.38311794,0.00036227,2]
[422596006,1779135052000,-4.52688712,0.00036227,2]
[422596003,1779135052000,-107.33063931,0.00036227,2]
[422596002,1779135052000,-300.0,0.00036227,2]
[422596004,1779135052000,-377.0409631,0.00036227,2]
[422596010,1779135052000,-300.0,0.00036227,2]
[422596012,1779135052000,-492.9890159,0.00036227,2]
[422596011,1779135052000,-300.0,0.00036227,2]
[422596020,1779135052000,-614.54914114,0.00036227,2]
[422596013,1779135052000,-604.82261984,0.00036227,2]
[422596016,1779135052000,-157.46969674,0.00036227,2]
[422596000,1779135052000,-381.86441318,0.00036227,2]
[422596051,1779135052000,-300.0,0.00036227,2]
[422596053,1779135052000,-484.3716024,0.00036227,2]
[422596043,1779135052000,-309.77500889,0.00036227,2]
[422596078,1779135052000,-864.96954818,0.00036227,2]
[422596067,1779135052000,-726.47725465,0.00036227,2]
[422596068,1779135052000,-301.96813424,0.00036227,2]
[422596065,1779135052000,-1067.5484804,0.00036227,2]
[422596071,1779135052000,-308.71965602,0.00036227,2]
[422596070,1779135052000,-302.03562326,0.00036227,2]
[422596069,1779135052000,-300.0,0.00036227,2]
[422596072,1779135052000,-337.21525466,0.00036227,2]
[422596075,1779135052000,-1913.5354076,0.00036227,2]
[422596077,1779135052000,-309.77500889,0.00036227,2]
[422596074,1779135052000,-949.54917655,0.00036227,2]
[422596079,1779135052000,-311.08512204,0.00036227,2]
[422596081,1779135052000,-464.11796449,0.00036227,2]
[422596082,1779135052000,-300.0,0.00036227,2]
[422596083,1779135052000,-577.57827662,0.00036227,2]
[422596086,1779135052000,-300.0,0.00036227,2]
[422596088,1779135052000,-300.0,0.00036227,2]
[422596084,1779135052000,-452.16244065,0.00036227,2]
[422596085,1779135052000,-300.0,0.00036227,2]
[422596039,1779135052000,-299.18119184,0.00036227,2]
[422596080,1779135052000,-300.0,0.00036227,2]
[422596076,1779135052000,-527.20076075,0.00036227,2]
[422596073,1779135052000,-300.0,0.00036227,2]
[422596061,1779135052000,-358.26947757,0.00036227,2]
[422596041,1779135052000,-343.97875933,0.00036227,2]
[422596066,1779135052000,-893.93225908,0.00036227,2]
[422596042,1779135052000,-527.20076075,0.00036227,2]
[422596048,1779135052000,-300.0,0.00036227,2]
[422596045,1779135052000,-311.08512204,0.00036227,2]
[422596047,1779135052000,-464.11796449,0.00036227,2]
[422596046,1779135052000,-300.0,0.00036227,2]
[422596049,1779135052000,-577.57827662,0.00036227,2]
[422596054,1779135052000,-310.01860705,0.00036227,2]
[422596052,1779135052000,-300.0,0.00036227,2]
[422596044,1779135052000,-864.96954818,0.00036227,2]
[422596087,1779135052000,-346.83240871,0.00036227,2]
[422596059,1779135052000,-300.00000001,0.00036227,2]
[422596055,1779135052000,-327.90949949,0.00036227,2]
[422596064,1779135052000,-528.05618904,0.00036227,2]
[422596058,1779135052000,-581.38169354,0.00036227,2]
[422596060,1779135052000,-492.9890159,0.00036227,2]
[422596062,1779135052000,-604.82261984,0.00036227,2]
[422596056,1779135052000,-300.0,0.00036227,2]
[422596063,1779135052000,-300.0,0.00036227,2]
[422596057,1779135052000,-1095.40392062,0.00036227,2]
[422596122,1779135053000,-528.05618904,0.00036227,2]
[422596116,1779135053000,-300.0,0.00036227,2]
[422596118,1779135053000,-300.0,0.00036227,2]
[422596126,1779135053000,-301.42492893,0.00036227,2]
[422596109,1779135053000,-311.08512203,0.00036227,2]
[422596117,1779135053000,-300.0,0.00036227,2]
[422596115,1779135053000,-300.0,0.00036227,2]
[422596119,1779135053000,-484.37160241,0.00036227,2]
[422596123,1779135053000,-555.60800983,0.00036227,2]
[422596133,1779135053000,-308.74302003,0.00036227,2]
[422596124,1779135053000,-645.67338676,0.00036227,2]
[422596125,1779135053000,-303.2490553,0.00036227,2]
[422596121,1779135053000,-492.9890159,0.00036227,2]
[422596128,1779135053000,-1913.5354076,0.00036227,2]
[422596129,1779135053000,-1147.88995825,0.00036227,2]
[422596131,1779135053000,-310.82632786,0.00036227,2]
[422596132,1779135053000,-300.0,0.00036227,2]
[422596130,1779135053000,-310.96643973,0.00036227,2]
[422596111,1779135053000,-463.7935969,0.00036227,2]
[422596120,1779135053000,-310.01860705,0.00036227,2]
[422596108,1779135053000,-572.64289671,0.00036227,2]
[422596090,1779135053000,-310.01860705,0.00036227,2]
[422596112,1779135053000,-300.0,0.00036227,2]
[422596135,1779135053000,-300.0,0.00036227,2]
[422596089,1779135053000,-484.37160241,0.00036227,2]
[422596092,1779135053000,-1095.40392062,0.00036227,2]
[422596093,1779135053000,-492.9890159,0.00036227,2]
[422596091,1779135053000,-300.0,0.00036227,2]
[422596094,1779135053000,-604.82261985,0.00036227,2]
[422596102,1779135053000,-300.0,0.00036227,2]
[422596095,1779135053000,-300.0,0.00036227,2]
[422596096,1779135053000,-528.05618904,0.00036227,2]
[422596097,1779135053000,-1067.5484804,0.00036227,2]
[422596099,1779135053000,-729.42615251,0.00036227,2]
[422596101,1779135053000,-300.0,0.00036227,2]
[422596100,1779135053000,-301.96813424,0.00036227,2]
[422596098,1779135053000,-893.93225908,0.00036227,2]
[422596103,1779135053000,-949.54917655,0.00036227,2]
[422596105,1779135053000,-344.12979214,0.00036227,2]
[422596106,1779135053000,-633.19323504,0.00036227,2]
[422596107,1779135053000,-309.77500889,0.00036227,2]
[422596104,1779135053000,-1913.5354076,0.00036227,2]
[422596110,1779135053000,-300.0,0.00036227,2]
[422596114,1779135053000,-453.81204319,0.00036227,2]
[422596113,1779135053000,-577.57827662,0.00036227,2]
[422596134,1779135053000,-452.10208934,0.00036227,2]
[422596127,1779135053000,-300.0,0.00036227,2]
[422596140,1779135053000,-300.0,0.00036227,2]
[422596164,1779135053000,-354.5276174,0.00036227,2]
[422596163,1779135053000,-1147.88995825,0.00036227,2]
[422596165,1779135053000,-525.1779882,0.00036227,2]
[422596167,1779135053000,-1913.25849317,0.00036227,2]
[422596166,1779135053000,-344.12979214,0.00036227,2]
[422596168,1779135053000,-352.21149721,0.00036227,2]
[422596171,1779135053000,-300.0,0.00036227,2]
[422596170,1779135053000,-300.7202646,0.00036227,2]
[422596175,1779135053000,-300.0,0.00036227,2]
[422596160,1779135053000,-300.0,0.00036227,2]
[422596172,1779135053000,-527.97955248,0.00036227,2]
[422596176,1779135053000,-300.0,0.00036227,2]
[422596173,1779135053000,-1067.39759446,0.00036227,2]
[422596177,1779135053000,-405.52552921,0.00036227,2]
[422596178,1779135053000,-300.0,0.00036227,2]
[422596179,1779135053000,-300.0,0.00036227,2]
[422596181,1779135053000,-550.57880878,0.00036227,2]
[422596182,1779135053000,-300.0,0.00036227,2]
[422596180,1779135053000,-604.73492278,0.00036227,2]
[422596141,1779135053000,-436.10538492,0.00036227,2]
[422596174,1779135053000,-893.8052833,0.00036227,2]
[422596162,1779135053000,-300.0,0.00036227,2]
[422596169,1779135053000,-300.0,0.00036227,2]
[422596161,1779135053000,-1147.88995825,0.00036227,2]
[422596138,1779135053000,-484.37160241,0.00036227,2]
[422596159,1779135053000,-1147.88995825,0.00036227,2]
[422596136,1779135053000,-300.0,0.00036227,2]
[422596139,1779135053000,-310.01860705,0.00036227,2]
[422596137,1779135053000,-577.23476372,0.00036227,2]
[422596142,1779135053000,-604.38413448,0.00036227,2]
[422596146,1779135053000,-949.54917655,0.00036227,2]
[422596144,1779135053000,-530.07428469,0.00036227,2]
[422596147,1779135053000,-1307.85666881,0.00036227,2]
[422596143,1779135053000,-300.0,0.00036227,2]
[422596145,1779135053000,-485.87466623,0.00036227,2]
[422596149,1779135053000,-351.9449561,0.00036227,2]
[422596148,1779135053000,-1147.88995825,0.00036227,2]
[422596153,1779135053000,-300.94948192,0.00036227,2]
[422596155,1779135053000,-483.88525103,0.00036227,2]
[422596152,1779135053000,-300.0,0.00036227,2]
[422596154,1779135053000,-300.0,0.00036227,2]
[422596151,1779135053000,-464.05309096,0.00036227,2]
[422596157,1779135053000,-953.24764951,0.00036227,2]
[422596150,1779135053000,-300.0,0.00036227,2]
[422596158,1779135053000,-300.0,0.00036227,2]
[422596156,1779135053000,-311.29962897,0.00036227,2]
[422596226,1779135054000,-300.0,0.00036227,2]
[422596228,1779135054000,-309.96996064,0.00036227,2]
[422596220,1779135054000,-249.56267816,0.00036227,2]
[422596221,1779135054000,-378.92071781,0.00036227,2]
[422596218,1779135054000,-500.0,0.00013698,2]
[422596219,1779135054000,-151.0,0.00024658,2]
[422596216,1779135054000,-344.08088589,0.00036227,2]
[422596217,1779135054000,-50.43732184,0.00036227,2]
[422596215,1779135054000,-1455.80063718,0.00036227,2]
[422596223,1779135054000,-300.0,0.00036227,2]
[422596212,1779135054000,-223.35664553,0.00036227,2]
[422596214,1779135054000,-872.04727509,0.00036227,2]
[422596222,1779135054000,-300.0,0.00036227,2]
[422596237,1779135054000,-443.14247031,0.00036227,2]
[422596230,1779135054000,-371.87590509,0.00036227,2]
[422596224,1779135054000,-300.6620146,0.00036227,2]
[422596229,1779135054000,-300.97944829,0.00036227,2]
[422596225,1779135054000,-300.0,0.00036227,2]
[422596231,1779135054000,-300.0,0.00036227,2]
[422596233,1779135054000,-409.40017449,0.00036227,2]
[422596235,1779135054000,-864.84573435,0.00036227,2]
[422596234,1779135054000,-344.12979213,0.00036227,2]
[422596238,1779135054000,-848.94986918,0.00036227,2]
[422596240,1779135054000,-539.5737431,0.00036227,2]
[422596241,1779135054000,-501.11600021,0.00036227,2]
[422596213,1779135054000,-500.0,0.00013698,2]
[422596227,1779135054000,-300.62183991,0.00036227,2]
[422596211,1779135054000,-300.0,0.00036227,2]
[422596190,1779135054000,-423.26082328,0.00036227,2]
[422596210,1779135054000,-327.53090561,0.00036227,2]
[422596184,1779135054000,-300.70672348,0.00036227,2]
[422596185,1779135054000,-300.0,0.00036227,2]
[422596183,1779135054000,-492.91797782,0.00036227,2]
[422596188,1779135054000,-300.0,0.00036227,2]
[422596186,1779135054000,-300.0,0.00036227,2]
[422596187,1779135054000,-338.03609347,0.00036227,2]
[422596189,1779135054000,-300.0,0.00036227,2]
[422596236,1779135054000,-464.05309098,0.00036227,2]
[422596191,1779135054000,-300.0,0.00036227,2]
[422596194,1779135054000,-365.54270048,0.00036227,2]
[422596193,1779135054000,-369.53124131,0.00036227,2]
[422596195,1779135054000,-214.33992478,0.00036227,2]
[422596209,1779135054000,-300.0,0.00036227,2]
[422596192,1779135054000,-300.0,0.00036227,2]
[422596197,1779135054000,-300.0,0.00036227,2]
[422596200,1779135054000,-512.90077825,0.00036227,2]
[422596203,1779135054000,-201.11276116,0.00036227,2]
[422596199,1779135054000,-300.0,0.00036227,2]
[422596208,1779135054000,-484.23291958,0.00036227,2]
[422596198,1779135054000,-309.92123962,0.00036227,2]
[422596205,1779135054000,-584.95708586,0.00036227,2]
[422596206,1779135054000,-86.9941949,0.00036227,2]
[422596207,1779135054000,-222.73556977,0.00036227,2]
[422596204,1779135054000,-98.88723884,0.00036227,2]
[422596201,1779135054000,-300.72439186,0.00036227,2]
[422596202,1779135054000,-300.00090433,0.00036227,2]
[422596196,1779135054000,-300.0,0.00036227,2]
[422596232,1779135054000,-300.0,0.00036227,2]
[422596292,1779135054000,-287.61764233,0.00036651,2]
[422596253,1779135054000,-527.20076075,0.00036227,2]
[422596269,1779135054000,-500.0,0.00036232,120]
[422596273,1779135054000,-500.0,0.00036232,120]
[422596272,1779135054000,-500.0,0.00036232,120]
[422596275,1779135054000,-687.6518855,0.00036232,120]
[422596274,1779135054000,-500.0,0.00036232,120]
[422596276,1779135054000,-849.73,0.00036242,120]
[422596289,1779135054000,-4300.0,0.00036463,7]
[422596290,1779135054000,-6029.35,0.000365,15]
[422596280,1779135054000,-271.38,0.00036242,120]
[422596279,1779135054000,-1085.54,0.00036242,120]
[422596288,1779135054000,-1797.921,0.00036401,45]
[422596282,1779135054000,-271.38,0.00036242,120]
[422596270,1779135054000,-500.0,0.00036232,120]
[422596281,1779135054000,-271.38,0.00036242,120]
[422596284,1779135054000,-519.4019,0.00036272,2]
[422596286,1779135054000,-2510.75802215,0.00036329,120]
[422596283,1779135054000,-271.38,0.00036242,120]
[422596287,1779135054000,-30865.0,0.000364,30]
[422596293,1779135054000,-151.38987291,0.0003669,2]
[422596291,1779135054000,-1312.77,0.00036558,30]
[422596294,1779135054000,-159.35,0.0003669,30]
[422596296,1779135054000,-176.1988,0.00036715,2]
[422596299,1779135054000,-1484.33,0.000369,2]
[422596295,1779135054000,-2558.75,0.00036713,10]
[422596298,1779135054000,-264.72279837,0.00036874,2]
[422596297,1779135054000,-7709.26,0.00036836,10]
[422596285,1779135054000,-486.9712,0.00036272,2]
[422596278,1779135054000,-219.65,0.00036242,120]
[422596239,1779135054000,-452.10208932,0.00036227,2]
[422596267,1779135054000,-500.0,0.00036232,120]
[422596271,1779135054000,-500.0,0.00036232,120]
[422596244,1779135054000,-1147.71030808,0.00036227,2]
[422596243,1779135054000,-1913.25849315,0.00036227,2]
[422596242,1779135054000,-949.41386656,0.00036227,2]
[422596246,1779135054000,-1564.76496277,0.00036227,2]
[422596251,1779135054000,-300.0,0.00036227,2]
[422596245,1779135054000,-309.72976467,0.00036227,2]
[422596252,1779135054000,-300.0,0.00036227,2]
[422596247,1779135054000,-333.17863827,0.00036227,2]
[422596250,1779135054000,-300.70672347,0.00036227,2]
[422596248,1779135054000,-311.04198967,0.00036227,2]
[422596254,1779135054000,-300.0,0.00036227,2]
[422596255,1779135054000,-344.97137492,0.00036227,2]
[422596249,1779135054000,-301.92446646,0.00036227,2]
[422596265,1779135054000,-500.0,0.00036232,120]
[422596277,1779135054000,-585.29,0.00036242,120]
[422596263,1779135054000,-500.0,0.00036232,120]
[422596262,1779135054000,-500.0,0.00036232,120]
[422596260,1779135054000,-500.0,0.00036232,120]
[422596261,1779135054000,-500.0,0.00036232,120]
[422596256,1779135054000,-861.2535346,0.00036232,120]
[422596268,1779135054000,-544.1208073,0.00036232,120]
[422596259,1779135054000,-500.0,0.00036232,120]
[422596258,1779135054000,-500.0,0.00036232,120]
[422596257,1779135054000,-171.8920962,0.00036232,120]
[422596266,1779135054000,-500.0,0.00036232,120]
[422596264,1779135054000,-500.0,0.00036232,120]
[422596311,1779135055000,-172.571498,0.0003699,7]
[422596303,1779135055000,-500.0,0.00036968,60]
[422596302,1779135055000,-200.0,0.000369,13]
[422596301,1779135055000,-13486.51,0.000369,2]
[422596300,1779135055000,-3249.86,0.000369,2]
[422596304,1779135055000,-1300.0,0.00036968,60]
[422596310,1779135055000,-151.0,0.0003699,7]
[422596306,1779135055000,-151.0,0.0003699,3]
[422596305,1779135055000,-151.0,0.00036987,14]
[422596307,1779135055000,-247.964926,0.0003699,3]
[422596318,1779135055000,-1603.126522,0.0003699,7]
[422596309,1779135055000,-151.0,0.0003699,7]
[422596312,1779135055000,-151.0,0.0003699,7]
[422596308,1779135055000,-151.0,0.0003699,7]
[422596314,1779135055000,-368.918492,0.0003699,7]
[422596316,1779135055000,-368.918492,0.0003699,7]
[422596315,1779135055000,-368.918492,0.0003699,7]
[422596326,1779135055000,-151.0,0.0003699,7]
[422596321,1779135055000,-1603.126529,0.0003699,7]
[422596313,1779135055000,-151.0,0.0003699,7]
[422596328,1779135055000,-455.926806,0.0003699,7]
[422596419,1779135056000,-502.0,0.00027752,2]
[422596418,1779135056000,-502.0,0.00027137,2]
[422596416,1779135056000,-262.065,0.00018751,2]
[422596415,1779135056000,-292.54050087,0.00037402,30]
[422596411,1779135056000,-4432.70560174,0.00037402,30]
[422596413,1779135056000,-11516.51194355,0.00037402,30]
[422596412,1779135056000,-25994.08831578,0.00037402,30]
[422596410,1779135056000,-357599.88906975,0.00037402,30]
[422596422,1779135056000,-502.0,0.00029596,4]
[422596414,1779135056000,-1718.45258,0.00037402,30]
[422596421,1779135056000,-502.0,0.00028981,4]
[422596417,1779135056000,-215.11887611,0.00025,7]
[422596423,1779135056000,-12406.31612389,0.00037402,30]
[422596424,1779135056000,-215.11887611,0.00025,3]
[422596434,1779135056000,2500.0,0.00028278,120]
[422596433,1779135056000,-5120.79084248,0.00037402,30]
[422596431,1779135056000,-215.11887611,0.000258,7]
[422596429,1779135056000,-502.0,0.00030825,6]
[422596432,1779135056000,-67250.02451394,0.00037402,30]
[422596425,1779135056000,-23249.06,0.00027397,10]
[422596427,1779135056000,-183.95,0.00028661,7]